fUST/lending_fUST_20250826
["ID","MTS","AMOUNT","RATE_DAILY","PERIOD"]
[381349345,1756144239590,-151.0,0.000389,30]
[381349346,1756144239601,-151.0,0.000389,30]
[381349347,1756144239609,-186.781952,0.000389,30]
[381349348,1756144239619,-151.0,0.000389,30]
[381349349,1756144239628,-282.067784,0.000389,30]
[381349351,1756144239638,-211.94,0.000389,120]
[381349352,1756144239647,-151.0,0.000389,30]
[381349353,1756144239657,-182.91,0.000389,120]
[381349354,1756144239667,-500.0,0.00038904,14]
[381349355,1756144239676,-153.0,0.00038904,30]
[381349357,1756144239685,-153.0,0.00038904,30]
[381349358,1756144239695,-153.0,0.00038904,30]
[381349359,1756144239704,-1500.0,0.00038936,5]
[381349360,1756144239714,-1500.0,0.00038936,5]
[381349361,1756144239723,-1000.0,0.00038937,5]
[381349362,1756144239732,-1000.0,0.00038937,5]
[381349363,1756144239741,-1000.0,0.00038937,5]
[381349365,1756144239751,-1000.0,0.00038937,5]
[381349366,1756144239761,-1000.0,0.00038937,5]
[381349367,1756144239770,-285.21755169,0.00038973,5]
[381349368,1756144239780,-500.0,0.00038973,5]
[381349369,1756144239790,-500.0,0.00038973,5]
[381349370,1756144239803,-500.0,0.00038973,2]
[381349371,1756144239813,-500.0,0.00038973,5]
[381349372,1756144239823,-372.4272047,0.00038973,5]
[381349373,1756144239832,-500.0,0.00038973,5]
[381349374,1756144239843,-500.0,0.00038973,5]
[381349375,1756144239852,-500.0,0.00038973,5]
[381349376,1756144239861,-500.0,0.00038973,5]
[381349377,1756144239871,-500.0,0.00038973,5]
[381349378,1756144239881,-500.0,0.00038973,5]
[381349379,1756144239890,-500.0,0.00038973,5]
[381349380,1756144239900,-91515.14,0.00039,30]
[381349381,1756144239910,-518609.26,0.00039,30]
[381349382,1756144239919,-151.0,0.00039,30]
[381349383,1756144239928,-151.0,0.00039,30]
[381349384,1756144239938,-151.0,0.00039,30]
[381349385,1756144239947,-151.0,0.00039,30]
[381349386,1756144239958,-151.0,0.00039,30]
[381349387,1756144239968,-151.0,0.00039,30]
[381349388,1756144239978,-151.0,0.00039,30]
[381349389,1756144239987,-151.0,0.00039,30]
[381349390,1756144239998,-151.0,0.00039,30]
[381349391,1756144240007,-151.0,0.00039,30]
[381349392,1756144240017,-151.0,0.00039,30]
[381349393,1756144240027,-151.0,0.00039,30]
[381349394,1756144240036,-151.0,0.00039,30]
[381349395,1756144240045,-160.0,0.00039,30]
[381349396,1756144240055,-154.131783,0.00039078,2]
[381349397,1756144240064,-154.131783,0.00039138,2]
[381349398,1756144240074,-1066.0,0.00039144,2]
[381349399,1756144240083,-202.31018633,0.00039158,32]
[381349400,1756144240094,-500.0,0.00039178,14]
[381349401,1756144240103,-376.0,0.00039273,7]
[381349402,1756144240113,-500.0,0.00039282,5]
[381349403,1756144240122,-151.0,0.000393,19]
[381349404,1756144240131,-897.0,0.00039321,120]
[381349405,1756144240141,-154.131783,0.00039378,7]
[381349406,1756144240150,-1500.0,0.0003939,5]
[381349407,1756144240159,-1500.0,0.0003939,5]
[381349408,1756144240169,-1500.0,0.00039451,7]
[381349410,1756144240179,-500.0,0.00039452,14]
[381349411,1756144240189,-376.0,0.00039476,120]
[381349412,1756144240198,-2000.0,0.00039484,5]
[381349413,1756144240208,-2000.0,0.00039484,5]
[381349414,1756144240218,-1500.0,0.00039485,5]
[381349415,1756144240228,-1500.0,0.00039485,5]
[381349416,1756144240237,-1500.0,0.00039485,5]
[381349417,1756144240247,-509.13413287,0.00039521,5]
[381349419,1756144240257,-500.0,0.00039521,2]
[381349421,1756144240266,-1000.0,0.00039521,5]
[381349423,1756144240275,-1000.0,0.00039521,5]
[381349424,1756144240285,-801.25552217,0.00039521,5]
[381349425,1756144240294,-1000.0,0.00039521,5]
[381349426,1756144240304,-1000.0,0.00039521,5]
[381349427,1756144240313,-1000.0,0.00039521,5]
[381349428,1756144240324,-1000.0,0.00039521,5]
[381349429,1756144240333,-1000.0,0.00039521,5]
[381349430,1756144240343,-154.131783,0.00039592,20]
[381349431,1756144240352,-1339.86362163,0.00039649,42]
[381349432,1756144240362,-594.2028556,0.00039721,2]
[381349433,1756144240371,-500.0,0.00039726,14]
[381349434,1756144240381,-3812.0408948,0.00039757,2]
[381349435,1756144240391,-44996.2013387,0.00039757,2]
[381349436,1756144240400,-151.0,0.000398,19]
[381349437,1756144240410,-151.0,0.000398,12]
[381349438,1756144240419,-151.0,0.000398,10]
[381349439,1756144240429,-59118.98907943,0.0003985,120]
[381349443,1756144241242,-933714.10234989,0.0003985,120]
[381349444,1756144241251,-151.0,0.0003985,30]
[381349445,1756144241261,-151.0,0.0003985,30]
[381349446,1756144241270,-1000.0,0.0003985,2]
[381349447,1756144241279,-1000.0,0.0003985,2]
[381349448,1756144241288,-463.661193,0.0003985,2]
[381349449,1756144241297,-151.0,0.0003985,30]
[381349450,1756144241307,-151.0,0.0003985,30]
[381349451,1756144241317,-151.0,0.0003985,30]
[381349452,1756144241326,-151.0,0.0003985,30]
[381349453,1756144241336,-151.0,0.0003985,30]
[381349454,1756144241505,-151.0,0.0003985,30]
[381349455,1756144241531,-500.0,0.00039873,2]
[381349456,1756144241541,-500.0,0.00039873,5]
[381349457,1756144241551,-500.0,0.00039873,5]
[381349458,1756144241560,-500.0,0.00039873,5]
[381349459,1756144241569,-500.0,0.00039873,5]
[381349460,1756144241579,-500.0,0.00039873,5]
[381349461,1756144241588,-153.68369385,0.000399,120]
[381349462,1756144241598,-170.0,0.00039923,120]
[381349463,1756144241608,-3140.17908543,0.00039938,61]
[381349464,1756144241617,-2000.0,0.00039938,5]
[381349465,1756144241627,-2000.0,0.00039938,5]
[381349466,1756144241636,-300.0,0.0004,120]
[381349467,1756144241646,-500.0,0.0004,14]
[381349468,1756144241656,-168.0,0.00040025,2]
[381349469,1756144241667,-2500.0,0.00040032,5]
[381349470,1756144241676,-2500.0,0.00040032,5]
[381349471,1756144241686,-500.0,0.00040033,5]
[381349472,1756144241695,-2000.0,0.00040033,5]
[381349473,1756144241706,-2000.0,0.00040033,5]
[381349474,1756144241716,-352.28150125,0.00040068,5]
[381349475,1756144241725,-1500.57215972,0.00040068,5]
[381349476,1756144241735,-1500.0,0.00040068,5]
[381349477,1756144241745,-1500.0,0.00040068,5]
[381349478,1756144241759,-1573.9008116,0.00040068,5]
[381349479,1756144241769,-1500.0,0.00040068,5]
[381349480,1756144241779,-153.68369385,0.00040095,120]
[381349481,1756144241789,-2866.38,0.000401,7]
[381349482,1756144241802,-686.23,0.000401,7]
[381349483,1756144241812,-376.0,0.00040129,2]
[381349484,1756144241821,-156.15615978,0.00040171,14]
[381349485,1756144241831,-319.0,0.00040193,2]
[381349486,1756144241842,-57412.36,0.000402,14]
[381349487,1756144241852,-318.0,0.00040245,2]
[381349488,1756144241863,-213.0,0.00040267,120]
[381349489,1756144241873,-150.0,0.00040269,120]
[381349490,1756144241882,-1500.0,0.00040273,7]
[381349491,1756144241891,-424.83317708,0.00040273,14]
[381349492,1756144241901,-897.0,0.00040301,7]
[381349493,1756144241911,-168.0,0.00040305,2]
[381349494,1756144241920,-980.026,0.00040368,2]
[381349495,1756144241930,-639.856,0.00040368,2]
[381349496,1756144241939,-2155.0,0.00040368,2]
[381349497,1756144241948,-229.888,0.00040368,2]
[381349498,1756144241959,-1000.0,0.00040421,2]
[381349499,1756144241968,-1000.0,0.00040421,5]
[381349500,1756144241977,-1000.0,0.00040421,5]
[381349502,1756144241987,-1000.0,0.00040421,5]
[381349504,1756144241996,-1000.0,0.00040421,5]
[381349505,1756144242006,-1000.0,0.00040421,5]
[381349506,1756144242017,-376.0,0.00040431,2]
[381349508,1756144242026,-153.68369385,0.00040439,120]
[381349510,1756144242036,-1555.18,0.00040485,120]
[381349512,1756144242045,-2500.0,0.00040486,5]
[381349513,1756144242055,-2500.0,0.00040486,5]
[381349514,1756144242064,-2500.0,0.0004058,5]
[381349515,1756144242073,-1000.0,0.0004058,5]
[381349516,1756144242083,-1542.35990858,0.00040581,5]
[381349517,1756144242092,-2500.0,0.00040581,5]
[381349518,1756144242101,-2000.0,0.00040616,5]
[381349519,1756144242111,-2000.0,0.00040616,5]
[381349520,1756144242121,-168.0,0.00040715,2]
[381349521,1756144242131,-153.68369385,0.00040784,120]
[381349522,1756144242141,-800.0,0.00040784,7]
[381349523,1756144242151,-800.0,0.00040788,7]
[381349524,1756144242160,-160.0,0.00040825,3]
[381349525,1756144242170,-196.52783031,0.00040849,7]
[381349526,1756144242180,-173.30378635,0.00040857,9]
[381349527,1756144242189,-344.67916094,0.00040859,7]
[381349528,1756144242199,-800.0,0.00040886,7]
[381349529,1756144242209,-646.0,0.000409,30]
[381349530,1756144242219,-168.0,0.00040903,2]
[381349531,1756144242228,-200.0,0.00040916,120]
[381349532,1756144242238,-200.0,0.00040916,120]
[381349533,1756144242248,-1500.0,0.00040968,2]
[381349534,1756144242257,-1500.0,0.00040968,5]
[381349535,1756144242266,-859.066744,0.00040968,5]
[381349536,1756144242276,-1500.0,0.00040968,5]
[381349537,1756144242286,-242.30796013,0.00040968,5]
[381349538,1756144242296,-1000.0,0.00040995,2]
[381349539,1756144242306,-154.131783,0.00040996,5]
[381349540,1756144242316,-1000.0,0.00041,120]
[381349541,1756144242326,-150.0,0.00041,120]
[381349542,1756144242337,-818.826,0.00041008,30]
[381349543,1756144242346,-2200.0,0.00041008,14]
[381349544,1756144242355,-501.1616258,0.00041025,15]
[381349545,1756144242365,-1000.0,0.00041034,5]
[381349546,1756144242375,-500.0,0.00041034,5]
[381349547,1756144242385,-518.12197027,0.00041073,5]
[381349548,1756144242394,-492.83434634,0.00041073,5]
[381349549,1756144242404,-500.0,0.00041073,5]
[381349550,1756144242414,-500.0,0.00041073,5]
[381349551,1756144242423,-501.28576784,0.00041073,5]
[381349552,1756144242433,-501.0583439,0.00041073,5]
[381349553,1756144242443,-500.0,0.00041073,5]
[381349554,1756144242452,-500.0,0.00041073,5]
[381349555,1756144242463,-500.0,0.00041073,5]
[381349556,1756144242471,-500.0,0.00041073,5]
[381349557,1756144242481,-509.75446269,0.00041073,5]
[381349558,1756144242491,-500.0,0.00041073,5]
[381349559,1756144242500,-500.0,0.00041073,5]
[381349560,1756144242510,-500.0,0.00041073,5]
[381349561,1756144242520,-500.0,0.00041073,5]
[381349562,1756144242530,-500.0,0.00041073,5]
[381349563,1756144242540,-500.0,0.00041073,5]
[381349564,1756144242551,-500.0,0.00041073,5]
[381349565,1756144242560,-158.84949824,0.00041073,2]
[381349566,1756144242570,-500.0,0.00041073,5]
[381349567,1756144242579,-500.0,0.00041073,5]
[381349568,1756144242589,-500.0,0.00041073,5]
[381349569,1756144242599,-423.10410092,0.00041073,5]
[381349570,1756144242610,-500.0,0.00041073,5]
[381349571,1756144242619,-500.0,0.00041073,5]
[381349572,1756144242629,-500.39908462,0.00041073,5]
[381349573,1756144242639,-500.0,0.00041073,5]
[381349574,1756144242648,-173.96261013,0.00041073,5]
[381349575,1756144242658,-500.0,0.00041073,5]
[381349576,1756144242667,-500.0,0.00041073,5]
[381349577,1756144242677,-500.0,0.00041073,5]
[381349578,1756144242687,-500.0,0.00041073,5]
[381349579,1756144242696,-500.0,0.00041073,5]
[381349580,1756144242706,-500.0,0.00041073,5]
[381349581,1756144242715,-500.0,0.00041073,5]
[381349582,1756144242724,-500.0,0.00041073,5]
[381349583,1756144242734,-500.0,0.00041073,5]
[381349584,1756144242744,-500.0,0.00041073,5]
[381349585,1756144242753,-500.0,0.00041073,5]
[381349586,1756144242763,-500.0,0.00041073,5]
[381349587,1756144242773,-500.0,0.00041073,5]
[381349588,1756144242783,-502.32416053,0.00041073,5]
[381349589,1756144242795,-500.0,0.00041073,5]
[381349590,1756144242807,-500.0,0.00041073,5]
[381349591,1756144242817,-154.79434068,0.00041073,5]
[381349592,1756144242827,-500.0,0.00041073,5]
[381349593,1756144242837,-500.0,0.00041073,5]
[381349594,1756144242846,-500.0,0.00041073,5]
[381349595,1756144242856,-500.0,0.00041073,5]
[381349596,1756144242865,-500.0,0.00041073,5]
[381349597,1756144242875,-500.0,0.00041073,5]
[381349598,1756144242885,-177.0,0.00041087,2]
[381349599,1756144242895,-1000.0,0.00041094,120]
[381349600,1756144242905,-1341.62275772,0.00041095,2]
[381349601,1756144242915,-480.0,0.00041095,30]
[381349602,1756144242925,-480.0,0.00041095,30]
[381349603,1756144242934,-480.0,0.00041095,30]
[381349604,1756144242944,-480.0,0.00041095,30]
[381349605,1756144242954,-480.0,0.00041095,30]
[381349606,1756144242963,-480.0,0.00041095,30]
[381349607,1756144242973,-480.0,0.00041095,30]
[381349608,1756144242983,-404.852288,0.00041095,30]
[381349609,1756144242993,-480.0,0.00041095,30]
[381349610,1756144243003,-480.0,0.00041095,30]
[381349611,1756144243012,-480.0,0.00041095,30]
[381349612,1756144243022,-480.0,0.00041095,30]
[381349613,1756144243031,-480.0,0.00041095,30]
[381349614,1756144243041,-480.0,0.00041095,30]
[381349615,1756144243051,-480.0,0.00041095,7]
[381349616,1756144243061,-480.0,0.00041095,30]
[381349617,1756144243070,-480.0,0.00041095,30]
[381349618,1756144243079,-487.66,0.00041095,30]
[381349619,1756144243089,-480.0,0.00041095,30]
[381349620,1756144243098,-480.0,0.00041095,30]
[381349621,1756144243108,-480.0,0.00041095,30]
[381349622,1756144243118,-480.0,0.00041095,30]
[381349623,1756144243127,-2736.96,0.00041095,30]
[381349624,1756144243137,-2736.96,0.00041095,30]
[381349625,1756144243147,-2736.96,0.00041095,30]
[381349626,1756144243156,-2736.96,0.00041095,30]
[381349627,1756144243165,-2736.96,0.00041095,30]
[381349628,1756144243175,-2736.96,0.00041095,30]
[381349629,1756144243184,-2736.96,0.00041095,30]
[381349630,1756144243194,-2736.96,0.00041095,30]
[381349631,1756144243204,-2736.96,0.00041095,30]
[381349632,1756144243214,-2736.96,0.00041095,30]
[381349633,1756144243223,-2736.96,0.00041095,30]
[381349634,1756144243234,-2736.96,0.00041095,30]
[381349635,1756144243243,-2736.96,0.00041095,30]
[381349636,1756144243253,-2736.96,0.00041095,30]
[381349637,1756144243263,-2736.96,0.00041095,30]
[381349638,1756144243272,-2736.96,0.00041095,30]
[381349639,1756144243281,-2736.96,0.00041095,30]
[381349640,1756144243290,-2736.96,0.00041095,30]
[381349641,1756144243299,-2736.96,0.00041095,30]
[381349642,1756144243309,-2736.96,0.00041095,30]
[381349643,1756144243318,-2736.96,0.00041095,30]
[381349644,1756144243327,-2736.96,0.00041095,30]
[381349645,1756144243337,-2736.96,0.00041095,30]
[381349646,1756144243346,-2737.05829671,0.00041095,30]
[381349647,1756144243356,-480.0,0.00041095,30]
[381349648,1756144243367,-480.0,0.00041095,30]
[381349649,1756144243377,-1658.87,0.00041095,30]
[381349650,1756144243386,-480.0,0.00041095,30]
[381349652,1756144243396,-480.0,0.00041095,30]
[381349654,1756144243405,-176.93448887,0.00041095,30]
[381349656,1756144243414,-480.0,0.00041095,30]
[381349657,1756144243424,-480.0,0.00041095,30]
[381349658,1756144243434,-2095.15,0.00041095,30]
[381349659,1756144243444,-1644.63,0.00041095,30]
[381349660,1756144243453,-557.41,0.00041095,30]
[381349661,1756144243464,-654.73,0.00041095,30]
[381349662,1756144243473,-480.0,0.00041095,30]
[381349663,1756144243482,-480.0,0.00041095,30]
[381349664,1756144243492,-151.0,0.00041095,30]
[381349665,1756144243501,-480.0,0.00041095,30]
[381349666,1756144243510,-151.0,0.00041095,30]
[381349667,1756144243519,-480.0,0.00041095,30]
[381349668,1756144243529,-480.0,0.00041095,30]
[381349669,1756144243538,-480.0,0.00041095,30]
[381349670,1756144243547,-480.0,0.00041095,30]
[381349671,1756144243556,-480.0,0.00041095,30]
[381349672,1756144243566,-480.0,0.00041095,30]
[381349673,1756144243576,-697.21,0.00041095,30]
[381349674,1756144243585,-480.0,0.00041095,30]
[381349675,1756144243595,-480.0,0.00041095,30]
[381349676,1756144243604,-480.0,0.00041095,30]
[381349677,1756144243614,-711.39,0.00041095,30]
[381349678,1756144243623,-480.0,0.00041095,30]
[381349679,1756144243633,-480.0,0.00041095,30]
[381349680,1756144243642,-480.0,0.00041095,30]
[381349681,1756144243652,-480.0,0.00041095,30]
[381349682,1756144243661,-1741.86,0.00041095,30]
[381349683,1756144243671,-480.0,0.00041095,30]
[381349684,1756144243680,-480.0,0.00041095,30]
[381349685,1756144243689,-480.0,0.00041095,30]
[381349686,1756144243699,-480.0,0.00041095,30]
[381349687,1756144243710,-487.7,0.00041095,30]
[381349688,1756144243721,-480.0,0.00041095,30]
[381349689,1756144243730,-480.0,0.00041095,30]
[381349690,1756144243739,-480.0,0.00041095,30]
[381349691,1756144243749,-480.0,0.00041095,30]
[381349692,1756144243758,-480.0,0.00041095,30]
[381349693,1756144243768,-480.0,0.00041095,30]
[381349694,1756144243777,-480.0,0.00041095,30]
[381349695,1756144243787,-534.54,0.00041095,30]
[381349696,1756144243801,-480.0,0.00041095,30]
[381349697,1756144243811,-480.0,0.00041095,30]
[381349698,1756144243820,-480.0,0.00041095,30]
[381349699,1756144243830,-480.0,0.00041095,30]
[381349700,1756144243841,-1503.54,0.00041095,30]
[381349701,1756144243851,-480.0,0.00041095,30]
[381349702,1756144243862,-480.0,0.00041095,30]
[381349703,1756144243872,-480.0,0.00041095,30]
[381349704,1756144243882,-480.0,0.00041095,30]
[381349705,1756144243891,-520.0,0.00041095,30]
[381349706,1756144243901,-480.64807542,0.00041095,30]
[381349707,1756144243911,-480.53523737,0.00041095,30]
[381349708,1756144243920,-480.0,0.00041095,30]
[381349709,1756144243980,-480.0,0.00041095,30]
[381349710,1756144243990,-506.52,0.00041095,30]
[381349711,1756144244000,-480.58224186,0.00041095,30]
[381349712,1756144244009,-480.0,0.00041095,30]
[381349713,1756144244019,-480.0,0.00041095,30]
[381349714,1756144244028,-480.0,0.00041095,30]
[381349715,1756144244037,-480.0,0.00041095,30]
[381349716,1756144244048,-480.0,0.00041095,30]
[381349717,1756144244058,-480.0,0.00041095,30]
[381349718,1756144244067,-480.0,0.00041095,30]
[381349719,1756144244076,-576.97,0.00041095,30]
[381349720,1756144244085,-414.06298926,0.00041095,30]
[381349721,1756144244094,-3943.45,0.00041095,30]
[381349722,1756144244104,-480.0,0.00041095,30]
[381349723,1756144244113,-480.0,0.00041095,30]
[381349724,1756144244122,-480.0,0.00041095,30]
[381349725,1756144244131,-2884.34,0.00041095,30]
[381349726,1756144244141,-739.6,0.00041095,30]
[381349727,1756144244150,-480.0,0.00041095,30]
[381349728,1756144244160,-480.0,0.00041095,30]
[381349729,1756144244169,-480.0,0.00041095,30]
[381349730,1756144244178,-480.0,0.00041095,30]
[381349731,1756144244187,-662.89,0.00041095,30]
[381349732,1756144244196,-480.0,0.00041095,30]
[381349733,1756144244206,-480.0,0.00041095,30]
[381349734,1756144244215,-734.17,0.00041095,30]
[381349735,1756144244224,-480.0,0.00041095,30]
[381349736,1756144244233,-480.0,0.00041095,30]
[381349737,1756144244243,-1963.21,0.00041095,30]
[381349738,1756144244252,-483.93,0.00041095,30]
[381349739,1756144244261,-480.0,0.00041095,30]
[381349740,1756144244270,-480.0,0.00041095,30]
[381349741,1756144244279,-480.0,0.00041095,30]
[381349742,1756144244288,-829.62,0.00041095,30]
[381349743,1756144244298,-480.0,0.00041095,30]
[381349744,1756144244307,-480.0,0.00041095,30]
[381349745,1756144244316,-480.0,0.00041095,30]
[381349746,1756144244325,-480.0,0.00041095,30]
[381349747,1756144244335,-480.0,0.00041095,30]
[381349748,1756144244344,-480.0,0.00041095,30]
[381349749,1756144244353,-480.0,0.00041095,30]
[381349750,1756144244362,-589.287844,0.00041095,30]
[381349751,1756144244371,-480.0,0.00041095,30]
[381349752,1756144244380,-480.0,0.00041095,30]
[381349753,1756144244390,-480.0,0.00041095,30]
[381349754,1756144244399,-480.0,0.00041095,30]
[381349755,1756144244408,-826.54,0.00041095,30]
[381349756,1756144244417,-480.0,0.00041095,30]
[381349757,1756144244427,-480.0,0.00041095,30]
[381349758,1756144244436,-480.0,0.00041095,30]
[381349759,1756144244445,-480.0,0.00041095,30]
[381349760,1756144244456,-756.79,0.00041095,30]
[381349761,1756144244465,-2710.51,0.00041095,30]
[381349762,1756144244475,-548.98,0.00041095,30]
[381349763,1756144244484,-480.0,0.00041095,30]
[381349764,1756144244493,-480.0,0.00041095,30]
[381349765,1756144244502,-480.0,0.00041095,30]
[381349766,1756144244512,-490.75,0.00041095,30]
[381349767,1756144244521,-663.97,0.00041095,30]
[381349768,1756144244531,-480.0,0.00041095,30]
[381349769,1756144244540,-577.0,0.00041095,30]
[381349770,1756144244550,-717.02,0.00041095,30]
[381349771,1756144244559,-480.0,0.00041095,30]
[381349772,1756144244568,-480.0,0.00041095,30]
[381349773,1756144244577,-480.0,0.00041095,30]
[381349774,1756144244588,-480.0,0.00041095,30]
[381349775,1756144244597,-666.05,0.00041095,30]
[381349776,1756144244606,-960.01,0.00041095,30]
[381349777,1756144244616,-774.52,0.00041095,30]
[381349778,1756144244625,-1375.33,0.00041095,30]
[381349779,1756144244635,-1162.95,0.00041095,120]
[381349780,1756144244644,-480.0,0.00041095,30]
[381349781,1756144244653,-960.31,0.00041095,30]
[381349782,1756144244663,-480.0,0.00041095,30]
[381349783,1756144244672,-480.0,0.00041095,30]
[381349784,1756144244681,-480.0,0.00041095,30]
[381349785,1756144244690,-480.0,0.00041095,30]
[381349786,1756144244699,-480.0,0.00041095,30]
[381349787,1756144244710,-1561.87,0.00041095,30]
[381349788,1756144244719,-480.0,0.00041095,30]
[381349789,1756144244728,-1002.26,0.00041095,30]
[381349790,1756144244737,-480.0,0.00041095,30]
[381349791,1756144244746,-1436.76,0.00041095,30]
[381349792,1756144244755,-480.0,0.00041095,30]
[381349793,1756144244765,-2693.19,0.00041095,30]
[381349794,1756144244774,-546.42,0.00041095,30]
[381349795,1756144244783,-480.0,0.00041095,30]
[381349796,1756144244794,-510.82,0.00041095,30]
[381349797,1756144244807,-640.48,0.00041095,30]
[381349798,1756144244816,-480.0,0.00041095,30]
[381349799,1756144244825,-480.0,0.00041095,30]
[381349800,1756144244834,-480.0,0.00041095,30]
[381349801,1756144244844,-480.0,0.00041095,30]
[381349802,1756144244853,-562.97,0.00041095,30]
[381349803,1756144244863,-480.0,0.00041095,30]
[381349804,1756144244875,-480.0,0.00041095,30]
[381349805,1756144244884,-501.71,0.00041095,30]
[381349806,1756144244893,-480.0,0.00041095,30]
[381349807,1756144244903,-2993.87,0.00041095,30]
[381349808,1756144244912,-480.0,0.00041095,30]
[381349809,1756144244922,-419.1920431,0.00041095,30]
[381349810,1756144244931,-1712.2,0.00041095,30]
[381349811,1756144244940,-601.43,0.00041095,30]
[381349812,1756144244950,-480.0,0.00041095,30]
[381349813,1756144244962,-1242.32,0.00041095,30]
[381349814,1756144244972,-480.0,0.00041095,30]
[381349815,1756144244981,-480.0,0.00041095,30]
[381349816,1756144244991,-758.24,0.00041095,30]
[381349817,1756144245000,-480.0,0.00041095,30]
[381349818,1756144245009,-480.0,0.00041095,30]
[381349819,1756144245019,-480.0,0.00041095,30]
[381349820,1756144245029,-1409.91,0.00041095,30]
[381349821,1756144245038,-867.81,0.00041095,30]
[381349822,1756144245048,-462.00028486,0.00041095,30]
[381349823,1756144245058,-1152.46,0.00041095,30]
[381349824,1756144245068,-480.0,0.00041095,30]
[381349825,1756144245077,-1000.0,0.00041095,30]
[381349826,1756144245086,-480.0,0.00041095,30]
[381349827,1756144245095,-480.0,0.00041095,30]
[381349828,1756144245105,-808.75,0.00041095,30]
[381349829,1756144245114,-480.0,0.00041095,30]
[381349830,1756144245125,-480.0,0.00041095,30]
[381349831,1756144245135,-480.0,0.00041095,30]
[381349832,1756144245144,-480.0,0.00041095,30]
[381349833,1756144245153,-747.14,0.00041095,30]
[381349834,1756144245163,-1110.7,0.00041095,30]
[381349835,1756144245172,-480.0,0.00041095,30]
[381349836,1756144245182,-496.04,0.00041095,30]
[381349837,1756144245191,-759.68,0.00041095,30]
[381349838,1756144245200,-480.0,0.00041095,30]
[381349839,1756144245212,-480.0,0.00041095,30]
[381349840,1756144245222,-480.0,0.00041095,30]
[381349841,1756144245231,-1028.95,0.00041095,30]
[381349842,1756144245240,-553.32345402,0.00041095,30]
[381349843,1756144245249,-480.0,0.00041095,30]
[381349844,1756144245258,-480.0,0.00041095,30]
[381349845,1756144245267,-1074.69,0.00041095,30]
[381349846,1756144245277,-480.0,0.00041095,30]
[381349847,1756144245286,-537.81,0.00041095,30]
[381349848,1756144245296,-480.0,0.00041095,30]
[381349849,1756144245305,-1187.34,0.00041095,30]
[381349850,1756144245314,-480.0,0.00041095,30]
[381349851,1756144245323,-480.0,0.00041095,30]
[381349852,1756144245332,-707.92,0.00041095,30]
[381349853,1756144245341,-1457.48,0.00041095,30]
[381349854,1756144245351,-605.44,0.00041095,30]
[381349855,1756144245359,-1457.48,0.00041095,30]
[381349856,1756144245368,-480.0,0.00041095,30]
[381349857,1756144245378,-1457.48,0.00041095,30]
[381349858,1756144245387,-480.0,0.00041095,30]
[381349859,1756144245396,-480.0,0.00041095,30]
[381349860,1756144245405,-1457.48,0.00041095,30]
[381349861,1756144245415,-823.49,0.00041095,30]
[381349862,1756144245424,-1457.48,0.00041095,30]